[Event "*** Titled Tuesday 3|2 Blitz"]
[Site "Chess.com"]
[Date "2015.11.03"]
[Round "8"]
[White "TomsKantans"]
[Black "pedromartinez91"]
[Result "1-0"]
[WhiteElo "2343"]
[BlackElo "2209"]
[TimeControl "180+2"]
[EndTime "12:45:58 PST"]
[Termination "TomsKantans won by checkmate"]

1. e4 {[%clk 0:02:55.3]} 1... c5 {[%clk 0:02:59.4]} 2. Nf3 {[%clk 0:02:56.1]}
2... Nc6 {[%clk 0:02:59.7]} 3. d4 {[%clk 0:02:54.6]} 3... cxd4 {[%clk
0:03:00.3]} 4. Nxd4 {[%clk 0:02:56.5]} 4... g6 {[%clk 0:03:01]} 5. Be3 {[%clk
0:02:50]} 5... Bg7 {[%clk 0:02:58.8]} 6. Nc3 {[%clk 0:02:48.5]} 6... Nf6 {[%clk
0:02:59.2]} 7. Bc4 {[%clk 0:02:48.6]} 7... O-O {[%clk 0:02:59.6]} 8. Bb3 {[%clk
0:02:46.6]} 8... a5 {[%clk 0:02:59.4]} 9. f3 {[%clk 0:02:37.3]} 9... d5 {[%clk
0:02:43.9]} 10. exd5 {[%clk 0:02:31.4]} 10... Nb4 {[%clk 0:02:42.3]} 11. O-O
{[%clk 0:02:20.5]} 11... Nbxd5 {[%clk 0:02:40.7]} 12. Nxd5 {[%clk 0:02:19.6]}
12... Nxd5 {[%clk 0:02:41]} 13. Bf2 {[%clk 0:02:20.7]} 13... a4 {[%clk
0:02:38.1]} 14. Bc4 {[%clk 0:02:13.1]} 14... a3 {[%clk 0:02:37.7]} 15. bxa3
{[%clk 0:02:08.3]} 15... Nb6 {[%clk 0:02:19.3]} 16. Bb3 {[%clk 0:01:59.3]} 16...
Rxa3 {[%clk 0:02:15.3]} 17. c3 {[%clk 0:01:50.7]} 17... Ra5 {[%clk 0:02:08.4]}
18. Qe2 {[%clk 0:01:47.1]} 18... Bd7 {[%clk 0:01:58.4]} 19. Rfd1 {[%clk
0:01:42.6]} 19... e5 {[%clk 0:01:48.8]} 20. Nc2 {[%clk 0:01:42.7]} 20... Qc7
{[%clk 0:01:45.4]} 21. Qe3 {[%clk 0:01:26.8]} 21... Na4 {[%clk 0:01:39.4]} 22.
Nb4 {[%clk 0:01:15.2]} 22... Bc6 {[%clk 0:01:36.2]} 23. c4 {[%clk 0:01:04.7]}
23... Nc5 {[%clk 0:01:33.5]} 24. Rac1 {[%clk 0:01:03]} 24... b6 {[%clk
0:01:21.5]} 25. Nd5 {[%clk 0:00:54.9]} 25... Qb7 {[%clk 0:01:17.1]} 26. h4
{[%clk 0:00:44.9]} 26... h5 {[%clk 0:01:15.5]} 27. Rc2 {[%clk 0:00:37.2]} 27...
Rfa8 {[%clk 0:01:11.6]} 28. Be1 {[%clk 0:00:30.9]} 28... Ra3 {[%clk 0:01:09.1]}
29. Bb4 {[%clk 0:00:31.8]} 29... R3a6 {[%clk 0:00:57.2]} 30. Bxc5 {[%clk
0:00:27.9]} 30... bxc5 {[%clk 0:00:58]} 31. Qxc5 {[%clk 0:00:29.8]} 31... R6a7
{[%clk 0:00:55.3]} 32. Re2 {[%clk 0:00:24]} 32... Kh8 {[%clk 0:00:52.5]} 33. Kh2
{[%clk 0:00:22.9]} 33... Rc8 {[%clk 0:00:48]} 34. Qe3 {[%clk 0:00:21.2]} 34...
Qb8 {[%clk 0:00:48.7]} 35. g3 {[%clk 0:00:21.6]} 35... Re8 {[%clk 0:00:43.9]}
36. Kg2 {[%clk 0:00:22.3]} 36... Bd7 {[%clk 0:00:41.8]} 37. Qg5 {[%clk
0:00:22.7]} 37... e4 {[%clk 0:00:41.2]} 38. Rxe4 {[%clk 0:00:21.6]} 38... Rxe4
{[%clk 0:00:41.4]} 39. fxe4 {[%clk 0:00:23.5]} 39... Bg4 {[%clk 0:00:42.1]} 40.
Rd2 {[%clk 0:00:21.6]} 40... Qe8 {[%clk 0:00:41.5]} 41. Qf4 {[%clk 0:00:14.2]}
41... Be5 {[%clk 0:00:39.9]} 42. Qf2 {[%clk 0:00:15.4]} 42... Ra6 {[%clk
0:00:35.7]} 43. c5 {[%clk 0:00:15.9]} 43... Re6 {[%clk 0:00:18.5]} 44. Ne3
{[%clk 0:00:15.6]} 44... Rc6 {[%clk 0:00:10.8]} 45. Nxg4 {[%clk 0:00:14.4]}
45... hxg4 {[%clk 0:00:11.9]} 46. Bd5 {[%clk 0:00:15.6]} 46... Ra6 {[%clk
0:00:11.3]} 47. c6 {[%clk 0:00:16.2]} 47... Ra3 {[%clk 0:00:12.1]} 48. Bb3
{[%clk 0:00:13]} 48... Qxc6 {[%clk 0:00:13]} 49. Qxf7 {[%clk 0:00:11.9]} 49...
Qxe4+ {[%clk 0:00:10.3]} 50. Kh2 {[%clk 0:00:13]} 50... Rxb3 {[%clk 0:00:08.4]}
51. Rd8# {[%clk 0:00:12.2]} 1-0

[Event "*** Titled Tuesday 3|2 Blitz"]
[Site "Chess.com"]
[Date "2015.11.03"]
[Round "8"]
[White "Fandorine"]
[Black "Izoria123"]
[Result "0-1"]
[WhiteElo "2520"]
[BlackElo "2437"]
[TimeControl "180+2"]
[EndTime "12:46:04 PST"]
[Termination "Izoria123 won by resignation"]

1. e4 {[%clk 0:03:01.9]} 1... c6 {[%clk 0:02:58.2]} 2. d4 {[%clk 0:03:01.7]}
2... d5 {[%clk 0:02:59.4]} 3. e5 {[%clk 0:03:03.1]} 3... Bf5 {[%clk 0:02:59.7]}
4. h4 {[%clk 0:03:04.3]} 4... h5 {[%clk 0:02:59.2]} 5. Bd3 {[%clk 0:03:05.3]}
5... Bxd3 {[%clk 0:02:57.4]} 6. Qxd3 {[%clk 0:03:06.4]} 6... e6 {[%clk
0:02:44.1]} 7. Bg5 {[%clk 0:03:06.1]} 7... Be7 {[%clk 0:02:38.6]} 8. Nf3 {[%clk
0:03:05.7]} 8... Nh6 {[%clk 0:02:38.9]} 9. Nc3 {[%clk 0:03:06.6]} 9... Nf5
{[%clk 0:02:39.3]} 10. Ne2 {[%clk 0:03:07.8]} 10... Qa5+ {[%clk 0:02:39.2]} 11.
c3 {[%clk 0:03:08.3]} 11... Qa6 {[%clk 0:02:38.5]} 12. Qc2 {[%clk 0:03:09.6]}
12... Nd7 {[%clk 0:02:25.9]} 13. b4 {[%clk 0:03:10.3]} 13... Nb6 {[%clk
0:02:16.6]} 14. a4 {[%clk 0:03:06.6]} 14... Nc4 {[%clk 0:02:13.5]} 15. Ng3
{[%clk 0:02:50.7]} 15... g6 {[%clk 0:02:05.5]} 16. O-O {[%clk 0:02:48.2]} 16...
Qb6 {[%clk 0:02:04.7]} 17. Qc1 {[%clk 0:02:41.8]} 17... Qd8 {[%clk 0:02:04.1]}
18. Nxf5 {[%clk 0:02:39]} 18... gxf5 {[%clk 0:02:04.2]} 19. g3 {[%clk 0:02:40]}
19... Kd7 {[%clk 0:02:04]} 20. b5 {[%clk 0:02:22.5]} 20... Rc8 {[%clk 0:01:56]}
21. Rb1 {[%clk 0:02:11]} 21... Rc7 {[%clk 0:01:51.9]} 22. bxc6+ {[%clk
0:02:05.8]} 22... Kxc6 {[%clk 0:01:50.6]} 23. Rb3 {[%clk 0:01:52.4]} 23... b6
{[%clk 0:01:48.6]} 24. Qf4 {[%clk 0:01:22.5]} 24... Kb7 {[%clk 0:01:47.6]} 25.
Kg2 {[%clk 0:01:22.2]} 25... Na5 {[%clk 0:01:46.5]} 26. Rb5 {[%clk 0:01:16.9]}
26... Rxc3 {[%clk 0:01:45.3]} 27. Rfb1 {[%clk 0:00:59]} 27... Ka8 {[%clk
0:01:43.1]} 28. Qd2 {[%clk 0:00:53.6]} 28... Rc4 {[%clk 0:01:42.4]} 29. Bf6
{[%clk 0:00:45.4]} 29... Bxf6 {[%clk 0:01:35.2]} 30. exf6 {[%clk 0:00:46.6]}
30... Qxf6 {[%clk 0:01:35.9]} 31. Ne5 {[%clk 0:00:48.2]} 31... Rc7 {[%clk
0:01:34.9]} 32. Rc1 {[%clk 0:00:31.5]} 32... Rhc8 {[%clk 0:01:30.7]} 33. Rxc7
{[%clk 0:00:23.4]} 33... Rxc7 {[%clk 0:01:30.1]} 34. Qe2 {[%clk 0:00:24.6]}
34... Nc4 {[%clk 0:01:15.9]} 35. a5 {[%clk 0:00:19.6]} 35... Nxa5 {[%clk
0:01:10.9]} 36. Qxh5 {[%clk 0:00:20.6]} 36... Nc4 {[%clk 0:01:10.8]} 37. Nf3
{[%clk 0:00:22.2]} 37... Kb7 {[%clk 0:01:10.9]} 38. Qh7 {[%clk 0:00:19.6]} 38...
f4 {[%clk 0:01:08.1]} 39. g4 {[%clk 0:00:18.5]} 39... Qg6 {[%clk 0:01:06.6]} 40.
Qxg6 {[%clk 0:00:17.3]} 40... fxg6 {[%clk 0:01:07.6]} 41. Rb1 {[%clk 0:00:17.6]}
41... a5 {[%clk 0:01:07.5]} 42. Re1 {[%clk 0:00:15.8]} 42... b5 {[%clk
0:01:03.8]} 43. Rxe6 {[%clk 0:00:16.2]} 43... b4 {[%clk 0:01:04.6]} 44. Ne1
{[%clk 0:00:13.4]} 44... b3 {[%clk 0:01:04.6]} 45. Nd3 {[%clk 0:00:14.8]} 45...
a4 {[%clk 0:01:03.3]} 46. Re1 {[%clk 0:00:09.2]} 46... a3 {[%clk 0:01:03.5]} 47.
Ra1 {[%clk 0:00:07]} 47... b2 {[%clk 0:01:03.1]} 48. Re1 {[%clk 0:00:08.6]}
48... Rh7 {[%clk 0:00:59.9]} 49. Kh3 {[%clk 0:00:08]} 49... Kc6 {[%clk
0:00:59.4]} 50. h5 {[%clk 0:00:07.5]} 50... gxh5 {[%clk 0:01:00]} 51. g5 {[%clk
0:00:08.8]} 51... Kb5 {[%clk 0:00:59.8]} 52. Kh4 {[%clk 0:00:08.8]} 52... Ka4
{[%clk 0:00:58.7]} 53. g6 {[%clk 0:00:08.9]} 53... Rg7 {[%clk 0:00:59.4]} 54.
Kxh5 {[%clk 0:00:09.8]} 54... Nd2 {[%clk 0:00:57.2]} 55. Re8 {[%clk 0:00:03.2]}
55... b1=Q {[%clk 0:00:56.5]} 56. Nc5+ {[%clk 0:00:04.6]} 56... Kb5 {[%clk
0:00:56.1]} 57. Rb8+ {[%clk 0:00:05.5]} 57... Kc4 {[%clk 0:00:57]} 58. Rxb1
{[%clk 0:00:06.5]} 58... Nxb1 {[%clk 0:00:58.3]} 59. Kh6 {[%clk 0:00:07.2]}
59... Rxg6+ {[%clk 0:00:59.3]} 60. Kxg6 {[%clk 0:00:08.5]} 60... a2 {[%clk
0:01:00.6]} 61. Kf5 {[%clk 0:00:08.4]} 61... a1=Q {[%clk 0:01:00.9]} 62. Ne6
{[%clk 0:00:09.7]} 62... Nd2 {[%clk 0:01:01.4]} 63. Kxf4 {[%clk 0:00:10.5]}
63... Qb1 {[%clk 0:01:02.4]} 64. f3 {[%clk 0:00:11.2]} 64... Nb3 {[%clk
0:01:02.5]} 65. Ke5 {[%clk 0:00:12.4]} 65... Nxd4 {[%clk 0:01:02.7]} 66. Nxd4
{[%clk 0:00:13]} 66... Qa1 {[%clk 0:01:03.2]} 0-1

[Event "*** Titled Tuesday 3|2 Blitz"]
[Site "Chess.com"]
[Date "2015.11.03"]
[Round "8"]
[White "AlexanderL"]
[Black "MITerryble"]
[Result "1/2-1/2"]
[WhiteElo "2577"]
[BlackElo "2605"]
[TimeControl "180+2"]
[EndTime "12:46:12 PST"]
[Termination "Game drawn by repetition"]

1. d4 {[%clk 0:03:01.9]} 1... e6 {[%clk 0:03:00.9]} 2. c4 {[%clk 0:02:59.7]}
2... Bb4+ {[%clk 0:03:00.5]} 3. Bd2 {[%clk 0:03:00.7]} 3... Qe7 {[%clk
0:03:01.3]} 4. Nf3 {[%clk 0:02:59.9]} 4... Nf6 {[%clk 0:03:01.6]} 5. Nc3 {[%clk
0:02:59.3]} 5... O-O {[%clk 0:03:00.5]} 6. Qc2 {[%clk 0:02:59.7]} 6... d6 {[%clk
0:02:48.7]} 7. a3 {[%clk 0:02:57.6]} 7... Bxc3 {[%clk 0:02:48.8]} 8. Bxc3 {[%clk
0:02:59.5]} 8... Nbd7 {[%clk 0:02:48.1]} 9. e4 {[%clk 0:03:00.3]} 9... e5 {[%clk
0:02:49.5]} 10. d5 {[%clk 0:02:59.9]} 10... a5 {[%clk 0:02:43.6]} 11. b3 {[%clk
0:03:00.5]} 11... Nc5 {[%clk 0:02:43.8]} 12. Nd2 {[%clk 0:03:01.5]} 12... Nh5
{[%clk 0:02:35.3]} 13. b4 {[%clk 0:02:54.8]} 13... axb4 {[%clk 0:02:16.4]} 14.
axb4 {[%clk 0:02:56.7]} 14... Rxa1+ {[%clk 0:02:17.6]} 15. Bxa1 {[%clk
0:02:57.6]} 15... Na6 {[%clk 0:02:19.5]} 16. Bc3 {[%clk 0:02:57.4]} 16... f5
{[%clk 0:02:18.7]} 17. Qd1 {[%clk 0:02:37.8]} 17... g6 {[%clk 0:02:08.8]} 18.
exf5 {[%clk 0:02:35]} 18... Qf6 {[%clk 0:01:56]} 19. Qf3 {[%clk 0:01:45.4]}
19... Qg7 {[%clk 0:01:39.8]} 20. Qe3 {[%clk 0:01:35.2]} 20... gxf5 {[%clk
0:01:35.5]} 21. f3 {[%clk 0:01:20.6]} 21... Qg6 {[%clk 0:01:15.5]} 22. Qf2
{[%clk 0:01:18]} 22... f4 {[%clk 0:01:01.4]} 23. Ne4 {[%clk 0:01:17.9]} 23...
Bf5 {[%clk 0:01:01.7]} 24. Bd3 {[%clk 0:01:19]} 24... Nf6 {[%clk 0:01:02.9]} 25.
Nxf6+ {[%clk 0:01:17.8]} 25... Rxf6 {[%clk 0:01:01.8]} 26. Bxf5 {[%clk
0:01:19.5]} 26... Rxf5 {[%clk 0:00:58.9]} 27. O-O {[%clk 0:01:21.4]} 27... Rg5
{[%clk 0:00:55.4]} 28. Qe2 {[%clk 0:01:18.8]} 28... Nb8 {[%clk 0:00:47.4]} 29.
c5 {[%clk 0:01:05.3]} 29... Nd7 {[%clk 0:00:47.4]} 30. c6 {[%clk 0:01:06.4]}
30... bxc6 {[%clk 0:00:47.5]} 31. dxc6 {[%clk 0:01:07.2]} 31... Nb6 {[%clk
0:00:46.1]} 32. b5 {[%clk 0:01:05.9]} 32... Kf7 {[%clk 0:00:41.2]} 33. Rd1
{[%clk 0:01:06]} 33... Qe6 {[%clk 0:00:34.8]} 34. Bd2 {[%clk 0:00:43.2]} 34...
Qb3 {[%clk 0:00:25.1]} 35. Rc1 {[%clk 0:00:39.3]} 35... Qb2 {[%clk 0:00:21.1]}
36. Qd3 {[%clk 0:00:35.6]} 36... Rg6 {[%clk 0:00:21.3]} 37. Rb1 {[%clk
0:00:31.6]} 37... Qa2 {[%clk 0:00:21.5]} 38. Qb3+ {[%clk 0:00:27.3]} 38... Qxb3
{[%clk 0:00:22.3]} 39. Rxb3 {[%clk 0:00:29.2]} 39... Nc4 {[%clk 0:00:23.9]} 40.
Bc1 {[%clk 0:00:18.6]} 40... Ke6 {[%clk 0:00:22.9]} 41. Rb4 {[%clk 0:00:15]}
41... d5 {[%clk 0:00:23.9]} 42. Ra4 {[%clk 0:00:15.7]} 42... Rg8 {[%clk
0:00:24.8]} 43. Ra7 {[%clk 0:00:15.8]} 43... Kd6 {[%clk 0:00:26]} 44. Ba3+
{[%clk 0:00:08.3]} 44... Nxa3 {[%clk 0:00:26.6]} 45. Rxa3 {[%clk 0:00:10.2]}
45... Rb8 {[%clk 0:00:27.2]} 46. Ra5 {[%clk 0:00:11.3]} 46... Kc5 {[%clk
0:00:24.8]} 47. b6+ {[%clk 0:00:08.3]} 47... Kxc6 {[%clk 0:00:17.5]} 48. bxc7
{[%clk 0:00:09]} 48... Rc8 {[%clk 0:00:18.3]} 49. Ra6+ {[%clk 0:00:10.3]} 49...
Kxc7 {[%clk 0:00:19.4]} 50. Re6 {[%clk 0:00:10.7]} 50... Kd7 {[%clk 0:00:18.2]}
51. Rxe5 {[%clk 0:00:11.4]} 51... Kd6 {[%clk 0:00:19.8]} 52. Rf5 {[%clk
0:00:11]} 52... Rc1+ {[%clk 0:00:17.8]} 53. Kf2 {[%clk 0:00:11.9]} 53... Rc2+
{[%clk 0:00:19]} 54. Kf1 {[%clk 0:00:13.1]} 54... Rc1+ {[%clk 0:00:20.2]} 55.
Kf2 {[%clk 0:00:12.3]} 55... Rc2+ {[%clk 0:00:21.1]} 56. Kf1 {[%clk 0:00:13.3]}
56... Rc1+ {[%clk 0:00:22.4]} 57. Kf2 {[%clk 0:00:13]} 1/2-1/2

[Event "*** Titled Tuesday 3|2 Blitz"]
[Site "Chess.com"]
[Date "2015.11.03"]
[Round "8"]
[White "Matibar"]
[Black "ChadaevNikolay"]
[Result "1/2-1/2"]
[WhiteElo "2466"]
[BlackElo "2575"]
[TimeControl "180+2"]
[EndTime "12:46:13 PST"]
[Termination "Game drawn - insufficient material"]

1. e4 {[%clk 0:02:56.5]} 1... c5 {[%clk 0:03:00]} 2. Ne2 {[%clk 0:02:57.3]} 2...
g6 {[%clk 0:03:00.1]} 3. g3 {[%clk 0:02:56.8]} 3... Bg7 {[%clk 0:03:00.5]} 4.
Bg2 {[%clk 0:02:58]} 4... Nc6 {[%clk 0:02:58.2]} 5. c3 {[%clk 0:02:59.1]} 5...
e5 {[%clk 0:02:59.1]} 6. d3 {[%clk 0:03:00.2]} 6... Nge7 {[%clk 0:02:56.3]} 7.
Be3 {[%clk 0:03:01]} 7... b6 {[%clk 0:02:53.8]} 8. h4 {[%clk 0:02:59]} 8... h5
{[%clk 0:02:36.5]} 9. c4 {[%clk 0:02:52.7]} 9... d6 {[%clk 0:02:35.6]} 10. Nbc3
{[%clk 0:02:53.7]} 10... O-O {[%clk 0:02:36.4]} 11. Nd5 {[%clk 0:02:50.2]} 11...
Nxd5 {[%clk 0:02:07.7]} 12. cxd5 {[%clk 0:02:49.3]} 12... Nd4 {[%clk 0:02:08.7]}
13. Nxd4 {[%clk 0:02:50.4]} 13... cxd4 {[%clk 0:02:08]} 14. Bg5 {[%clk
0:02:50.8]} 14... f6 {[%clk 0:02:06]} 15. Bd2 {[%clk 0:02:51.4]} 15... f5 {[%clk
0:02:01.1]} 16. f4 {[%clk 0:02:07]} 16... fxe4 {[%clk 0:01:17.4]} 17. dxe4
{[%clk 0:02:05.5]} 17... exf4 {[%clk 0:01:10.4]} 18. Bxf4 {[%clk 0:02:05.1]}
18... Ba6 {[%clk 0:01:01.8]} 19. Qa4 {[%clk 0:02:01.6]} 19... Bd3 {[%clk
0:01:02.6]} 20. Rd1 {[%clk 0:01:47.4]} 20... Bxe4 {[%clk 0:00:56.5]} 21. Bxe4
{[%clk 0:01:47.7]} 21... Qe7 {[%clk 0:00:57.2]} 22. Qc2 {[%clk 0:01:47]} 22...
Rfe8 {[%clk 0:00:46.8]} 23. Kd2 {[%clk 0:01:33]} 23... Qxe4 {[%clk 0:00:46.5]}
24. Qxe4 {[%clk 0:01:33.2]} 24... Rxe4 {[%clk 0:00:48.4]} 25. Rhe1 {[%clk
0:01:32.2]} 25... Ree8 {[%clk 0:00:26.1]} 26. Bxd6 {[%clk 0:01:20.2]} 26... Bh6+
{[%clk 0:00:24.9]} 27. Kd3 {[%clk 0:01:20.3]} 27... Be3 {[%clk 0:00:25.6]} 28.
Bc7 {[%clk 0:01:18]} 28... Kf7 {[%clk 0:00:22.3]} 29. Re2 {[%clk 0:01:14.3]}
29... Rac8 {[%clk 0:00:15.2]} 30. Rf1+ {[%clk 0:01:14.8]} 30... Ke7 {[%clk
0:00:12.7]} 31. Bf4 {[%clk 0:01:14.5]} 31... Kd7 {[%clk 0:00:11.1]} 32. Bxe3
{[%clk 0:01:15.2]} 32... dxe3 {[%clk 0:00:12.2]} 33. Rxe3 {[%clk 0:01:13.1]}
33... Rxe3+ {[%clk 0:00:12.3]} 34. Kxe3 {[%clk 0:01:15]} 34... Rc2 {[%clk
0:00:14]} 35. Rf7+ {[%clk 0:00:59.6]} 35... Kd6 {[%clk 0:00:14.4]} 36. Rxa7
{[%clk 0:01:00.1]} 36... Rxb2 {[%clk 0:00:11.4]} 37. a3 {[%clk 0:00:28.9]} 37...
Kxd5 {[%clk 0:00:12]} 38. Kf4 {[%clk 0:00:29.9]} 38... Rb3 {[%clk 0:00:08.1]}
39. Rg7 {[%clk 0:00:28.9]} 39... Rxa3 {[%clk 0:00:08.5]} 40. Rxg6 {[%clk
0:00:30.2]} 40... b5 {[%clk 0:00:10.1]} 41. Rg5+ {[%clk 0:00:30.8]} 41... Kc4
{[%clk 0:00:11.4]} 42. Rxh5 {[%clk 0:00:32]} 42... b4 {[%clk 0:00:12.9]} 43. Rh8
{[%clk 0:00:33]} 43... Ra5 {[%clk 0:00:13.8]} 44. Rc8+ {[%clk 0:00:33.4]} 44...
Kd3 {[%clk 0:00:14]} 45. Rb8 {[%clk 0:00:33.7]} 45... Kc3 {[%clk 0:00:15.3]} 46.
g4 {[%clk 0:00:33.7]} 46... b3 {[%clk 0:00:16.9]} 47. Rxb3+ {[%clk 0:00:32.2]}
47... Kxb3 {[%clk 0:00:18.1]} 48. h5 {[%clk 0:00:33.6]} 48... Kc4 {[%clk
0:00:19.4]} 49. h6 {[%clk 0:00:34.4]} 49... Kd5 {[%clk 0:00:20.2]} 50. Kf5
{[%clk 0:00:35.5]} 50... Ra1 {[%clk 0:00:19.5]} 51. g5 {[%clk 0:00:32.4]} 51...
Rh1 {[%clk 0:00:20.3]} 52. Kf6 {[%clk 0:00:30.8]} 52... Rh2 {[%clk 0:00:17.5]}
53. Kg7 {[%clk 0:00:24.9]} 53... Ke5 {[%clk 0:00:18.2]} 54. g6 {[%clk
0:00:25.4]} 54... Kf5 {[%clk 0:00:19.4]} 55. h7 {[%clk 0:00:26.5]} 55... Rh1
{[%clk 0:00:21]} 56. Kf7 {[%clk 0:00:24.3]} 56... Rh2 {[%clk 0:00:21.9]} 57. Kg7
{[%clk 0:00:22.7]} 57... Rh1 {[%clk 0:00:23]} 58. h8=Q {[%clk 0:00:22]} 58...
Rxh8 {[%clk 0:00:23.8]} 59. Kxh8 {[%clk 0:00:23.4]} 59... Kxg6 {[%clk
0:00:25.7]} 1/2-1/2

[Event "*** Titled Tuesday 3|2 Blitz"]
[Site "Chess.com"]
[Date "2015.11.03"]
[Round "8"]
[White "oggy1984"]
[Black "motivated_bishop"]
[Result "1/2-1/2"]
[WhiteElo "2282"]
[BlackElo "2217"]
[TimeControl "180+2"]
[EndTime "12:46:18 PST"]
[Termination "Game drawn by agreement"]

1. d4 {[%clk 0:03:01.9]} 1... Nf6 {[%clk 0:02:58.1]} 2. c4 {[%clk 0:03:00.6]}
2... g6 {[%clk 0:02:59.1]} 3. Nc3 {[%clk 0:03:01.1]} 3... d5 {[%clk 0:03:00]} 4.
Nf3 {[%clk 0:03:01.4]} 4... Bg7 {[%clk 0:03:01.3]} 5. Bg5 {[%clk 0:03:01.8]}
5... Ne4 {[%clk 0:03:00.9]} 6. Bf4 {[%clk 0:03:02.2]} 6... Nxc3 {[%clk
0:02:59.9]} 7. bxc3 {[%clk 0:03:02.1]} 7... c5 {[%clk 0:03:00.9]} 8. e3 {[%clk
0:03:02.2]} 8... O-O {[%clk 0:02:56.8]} 9. cxd5 {[%clk 0:03:01.7]} 9... Qxd5
{[%clk 0:02:57.6]} 10. Be2 {[%clk 0:03:02.2]} 10... Nc6 {[%clk 0:02:57.6]} 11.
O-O {[%clk 0:03:00.7]} 11... cxd4 {[%clk 0:02:58.7]} 12. cxd4 {[%clk 0:03:02.6]}
12... Bf5 {[%clk 0:02:56]} 13. Qa4 {[%clk 0:02:55.2]} 13... Qa5 {[%clk
0:02:56.8]} 14. Qxa5 {[%clk 0:02:53.6]} 14... Nxa5 {[%clk 0:02:56.7]} 15. Rfc1
{[%clk 0:02:52.6]} 15... Rfc8 {[%clk 0:02:55.9]} 16. Bc7 {[%clk 0:02:49.4]}
16... Nc6 {[%clk 0:02:54.4]} 17. Bg3 {[%clk 0:02:49.4]} 17... Be6 {[%clk
0:02:32.7]} 18. a3 {[%clk 0:02:46.9]} 18... Bd5 {[%clk 0:02:31.1]} 19. Rab1
{[%clk 0:02:45.3]} 19... Na5 {[%clk 0:02:22.3]} 20. Nd2 {[%clk 0:02:27.2]} 20...
Rc6 {[%clk 0:01:44.8]} 21. Rxc6 {[%clk 0:02:20.2]} 21... Bxc6 {[%clk 0:01:43.3]}
22. Kf1 {[%clk 0:02:11.5]} 22... Rc8 {[%clk 0:01:42.9]} 23. f3 {[%clk
0:02:00.5]} 23... Bd7 {[%clk 0:01:16.9]} 24. Nb3 {[%clk 0:01:54.5]} 24... Nxb3
{[%clk 0:01:12.3]} 25. Rxb3 {[%clk 0:01:54.2]} 25... b6 {[%clk 0:01:09.5]} 26.
Be1 {[%clk 0:01:39.1]} 26... Rc2 {[%clk 0:01:05.6]} 27. Rc3 {[%clk 0:01:36.3]}
27... Rxc3 {[%clk 0:01:04.9]} 28. Bxc3 {[%clk 0:01:38.2]} 28... e6 {[%clk
0:00:57.4]} 29. e4 {[%clk 0:01:25.4]} 29... Bf8 {[%clk 0:00:56.4]} 30. Bb2
{[%clk 0:01:25.9]} 30... Bd6 {[%clk 0:00:51.8]} 31. Kf2 {[%clk 0:01:25.5]} 31...
h5 {[%clk 0:00:49.4]} 32. g3 {[%clk 0:01:26]} 32... h4 {[%clk 0:00:44.1]} 33. f4
{[%clk 0:01:19.9]} 33... Kf8 {[%clk 0:00:42.5]} 34. Ke3 {[%clk 0:01:17.8]} 34...
hxg3 {[%clk 0:00:41.9]} 35. hxg3 {[%clk 0:01:18.1]} 35... Ba4 {[%clk 0:00:39]}
36. Bd3 {[%clk 0:01:07.4]} 36... Ke8 {[%clk 0:00:39.6]} 37. g4 {[%clk 0:01:04]}
37... Bd1 {[%clk 0:00:39.2]} 38. g5 {[%clk 0:01:01.2]} 38... Kd8 {[%clk
0:00:35.7]} 39. f5 {[%clk 0:00:58]} 39... exf5 {[%clk 0:00:24.7]} 40. exf5
{[%clk 0:00:59.9]} 40... gxf5 {[%clk 0:00:26.1]} 41. Bxf5 {[%clk 0:01:01.4]}
41... Be7 {[%clk 0:00:27.6]} 42. Kf4 {[%clk 0:00:58.9]} 42... Kc7 {[%clk
0:00:25.9]} 43. d5 {[%clk 0:00:47.4]} 43... Bb3 {[%clk 0:00:21.5]} 44. Be5+
{[%clk 0:00:37]} 44... Bd6 {[%clk 0:00:22.7]} 45. Be4 {[%clk 0:00:36.6]} 45...
Kd7 {[%clk 0:00:21.5]} 46. Kf5 {[%clk 0:00:21.6]} 46... Bxa3 {[%clk 0:00:17.6]}
47. Kf6 {[%clk 0:00:22.2]} 47... Be7+ {[%clk 0:00:18.8]} 48. Kxf7 {[%clk
0:00:21.2]} 48... Bxg5 {[%clk 0:00:20]} 49. Bf5+ {[%clk 0:00:21.5]} 49... Kd8
{[%clk 0:00:21]} 50. Be6 {[%clk 0:00:22]} 50... a5 {[%clk 0:00:21.5]} 51. Bd4
{[%clk 0:00:20.8]} 51... Kc7 {[%clk 0:00:20]} 52. d6+ {[%clk 0:00:21.7]} 52...
Kxd6 {[%clk 0:00:20.9]} 53. Bxb3 {[%clk 0:00:23.6]} 53... Kc6 {[%clk 0:00:21]}
54. Kg6 {[%clk 0:00:19.7]} 54... Bc1 {[%clk 0:00:18.4]} 55. Bxb6 {[%clk
0:00:16.5]} 55... Kxb6 {[%clk 0:00:18.6]} 56. Ba4 {[%clk 0:00:16.8]} 56... Kc5
{[%clk 0:00:19.8]} 1/2-1/2